[Event "94th FRA-ch Open C 2019"]
[Site "Chartres"]
[Date "2019.08.22"]
[Round "6.5"]
[White "Shefay, Paul"]
[Black "Castanet, Clement"]
[Result "1/2-1/2"]
[ECO "C25"]
[WhiteElo "1680"]
[BlackElo "1650"]
[Annotator "NA"]
[PlyCount "170"]
[EventDate "2019.08.17"]
[EventType "swiss"]
[EventCountry "FRA"]
[SourceTitle "playchess.com"]
[Source "ChessBase"]
[SourceQuality "1"]
[TimeControl "40/5400+30:1800+30"]

1. e4 {[%emt 0:00:37]} e5 {[%emt 0:00:00]} 2. Nc3 {[%emt 0:00:17]} Nc6 {[%emt 0:00:40]} 3. g3 {[%emt 0:00:56]} Bc5 {[%emt 0:01:40]} 4. Bg2 {[%emt 0:00:34]} d6 {[%emt 0:00:42]} 5. Nf3 {[%emt 0:01:04]} Bg4 {[%emt 0:00:24]} 6. h3 {[%emt 0:03:32]} Be6 {[%emt 0:02:06]} 7. Na4 {[%emt 0:04:11]} Bb6 {[%emt 0:01:53]} 8. Nxb6 {[%emt 0:01:51]} axb6 {[%emt 0:00:11]} 9. b3 {[%emt 0:01:23]} Nge7 {[%emt 0:08:54]} 10. d3 {[%emt 0:02:10]} h6 {[%emt 0:05:43]} 11. O-O {[%emt 0:02:25]} Qd7 {[%emt 0:05:00]} 12. Kh2 {[%emt 0:01:50]} g5 {[%emt 0:14:37]} 13. d4 {[%emt 0:08:46]} exd4 {[%emt 0:08:15]} 14. Nxd4 {[%emt 0:00:42]} Rf8 {[%emt 0:03:22]} 15. f4 {[%emt 0:05:58]} Nxd4 {[%emt 0:08:44]} 16. Qxd4 {[%emt 0:00:44]} Nc6 {[%emt 0:01:03]} 17. Qf6 {[%emt 0:03:27]} Qe7 {[%emt 0:00:23]} 18. fxg5 {[%emt 0:07:34]} hxg5 {[%emt 0:01:39]} 19. Bxg5 {[%emt 0:00:19]} Qxf6 {[%emt 0:00:12]} 20. Bxf6 {[%emt 0:00:50]} Kd7 {[%emt 0:00:13]} 21. a4 {[%emt 0:04:26]} Rg8 {[%emt 0:00:37]} 22. Rad1 {[%emt 0:01:01]} Ra5 {[%emt 0:02:14]} 23. Rfe1 {[%emt 0:05:27]} Rg6 {[%emt 0:01:43]} 24. e5 {[%emt 0:01:30]} Rc5 {[%emt 0:04:34]} 25. c4 {[%emt 0:07:01]} Bf5 {[%emt 0:05:33]} 26. Re3 {[%emt 0:03:00]} Rh6 {[%emt 0:03:24]} 27. Bg5 {[%emt 0:01:24]} Re6 {[%emt 0:03:43]} 28. Bf6 {[%emt 0:03:24]} Nxe5 {[%emt 0:02:05]} 29. Bxe5 {[%emt 0:02:02]} Rcxe5 {[%emt 0:00:29]} 30. Rf3 {[%emt 0:03:21]} Bg6 {[%emt 0:01:15]} 31. Rd2 {[%emt 0:01:12]} Re2 {[%emt 0:01:36]} 32. Rf2 {[%emt 0:00:23]} R2e3 {[%emt 0:01:02]} 33. Rb2 {[%emt 0:03:21]} Rc3 {[%emt 0:04:15]} 34. Rf3 {[%emt 0:02:52]} Rxf3 {[%emt 0:03:47]} 35. Bxf3 {[%emt 0:00:02]} c6 {[%emt 0:00:18]} 36. Bg4 {[%emt 0:00:14]} f5 {[%emt 0:00:25]} 37. Bf3 {[%emt 0:01:34]} Re3 {[%emt 0:01:06]} 38. Kg2 {[%emt 0:00:25]} Rc3 {[%emt 0:02:04]} 39. h4 {[%emt 0:01:21]} Ke6 {[%emt 0:01:57]} 40. Kf2 {[%emt 0:01:12]} Kf6 {[%emt 0:01:16]} 41. Be2 {[%emt 0:34:19]} Bf7 {[%emt 0:30:51]} 42. Bd1 {[%emt 0:06:52]} d5 {[%emt 0:00:00]} 43. cxd5 {[%emt 0:00:00]} Bxd5 {[%emt 0:00:00]} 44. b4 {[%emt 0:00:00]} Rd3 {[%emt 0:00:00]} 45. Be2 {[%emt 0:00:00]} Rc3 {[%emt 0:00:00]} 46. b5 {[%emt 0:00:00]} Rb3 {[%emt 0:00:00]} 47. Rd2 {[%emt 0:00:00]} Ra3 {[%emt 0:00:00]} 48. bxc6 {[%emt 0:00:00]} bxc6 {[%emt 0:00:00]} 49. Rb2 {[%emt 0:00:00]} Rb3 {[%emt 0:00:00]} 50. Rd2 {[%emt 0:00:00]} Rb4 {[%emt 0:00:00]} 51. Bf3 {[%emt 0:00:50]} Bxf3 {[%emt 0:00:00]} 52. Kxf3 {[%emt 0:00:03]} Rb3+ {[%emt 0:00:00]} 53. Kf2 {[%emt 0:00:33]} c5 {[%emt 0:00:00]} 54. Ra2 {[%emt 0:01:22]} Rc3 {[%emt 0:00:00]} 55. a5 {[%emt 0:00:17]} bxa5 {[%emt 0:00:00]} 56. Rxa5 {[%emt 0:00:01]} Kg6 {[%emt 0:00:00]} 57. Ra6+ {[%emt 0:03:43]} Kg7 {[%emt 0:01:07]} 58. h5 {[%emt 0:02:56]} Rc1 {[%emt 0:03:27]} 59. Rc6 {[%emt 0:01:31]} c4 {[%emt 0:01:47]} 60. Kf3 {[%emt 0:00:19]} Rf1+ {[%emt 0:02:16]} 61. Kg2 {[%emt 0:00:17]} Rc1 {[%emt 0:00:16]} 62. Kf3 {[%emt 0:00:05]} Rf1+ {[%emt 0:00:22]} 63. Ke3 {[%emt 0:01:32]} Rh1 {[%emt 0:00:28]} 64. Rxc4 {[%emt 0:00:49]} Rxh5 {[%emt 0:01:05]} 65. Rc6 {[%emt 0:00:36]} Rh1 {[%emt 0:01:08]} 66. Kf4 {[%emt 0:00:22]} Rf1+ {[%emt 0:00:14]} 67. Kg5 {[%emt 0:00:10]} Rg1 {[%emt 0:00:20]} 68. Rc7+ {[%emt 0:00:28]} Kf8 {[%emt 0:00:26]} 69. Rc3 {[%emt 0:00:41]} Rf1 {[%emt 0:00:19]} 70. Rc4 {[%emt 0:00:16]} Rg1 {[%emt 0:00:47]} 71. Rc3 {[%emt 0:00:20]} Rf1 {[%emt 0:00:10]} 72. Kf6 {[%emt 0:00:26]} Ke8 {[%emt 0:00:11]} 73. Rc4 {[%emt 0:01:00]} Rg1 {[%emt 0:00:27]} 74. Rc8+ {[%emt 0:00:15]} Kd7 {[%emt 0:00:06]} 75. Rc3 {[%emt 0:00:09]} Rf1 {[%emt 0:00:08]} 76. Rd3+ {[%emt 0:00:41]} Ke8 {[%emt 0:01:09]} 77. Kg5 {[%emt 0:00:50]} Kf7 {[%emt 0:00:25]} 78. Rd5 {[%emt 0:00:39]} Ke6 {[%emt 0:00:57]} 79. Ra5 {[%emt 0:01:24]} Rg1 {[%emt 0:00:56]} 80. Ra6+ {[%emt 0:00:43]} Ke5 {[%emt 0:00:14]} 81. Ra5+ {[%emt 0:00:21]} Ke6 {[%emt 0:00:44]} 82. Kf4 {[%emt 0:00:39]} Rf1+ {[%emt 0:00:20]} 83. Kg5 {[%emt 0:00:06]} Rg1 {[%emt 0:00:21]} 84. Ra3 {[%emt 0:01:12]} Ke5 {[%emt 0:00:23]} 85. Ra5+ {[%emt 0:00:24]} Ke6 {[%emt 0:00:12]} 1/2-1/2

[Event "94th FRA-ch Open C 2019"]
[Site "Chartres"]
[Date "2019.08.22"]
[Round "6.6"]
[White "Rocher, Guillaume"]
[Black "Bele, Charles"]
[Result "1-0"]
[ECO "D35"]
[WhiteElo "1620"]
[BlackElo "1678"]
[Annotator "NA"]
[PlyCount "117"]
[EventDate "2019.08.17"]
[EventType "swiss"]
[EventCountry "FRA"]
[SourceTitle "playchess.com"]
[Source "ChessBase"]
[SourceQuality "1"]
[TimeControl "40/5400+30:1800+30"]

1. d4 {[%emt 0:00:00]} d5 {[%emt 0:00:00]} 2. Bg5 {[%emt 0:00:00]} h6 {[%emt 0:06:28]} 3. Bh4 {[%emt 0:00:08]} Bf5 {[%emt 0:00:24]} 4. Nf3 {[%emt 0:00:48]} Nd7 {[%emt 0:05:06]} 5. e3 {[%emt 0:00:53]} Ngf6 {[%emt 0:02:35]} 6. c4 {[%emt 0:06:04]} c6 {[%emt 0:15:00]} 7. Nc3 {[%emt 0:01:41]} e6 {[%emt 0:02:05]} 8. cxd5 {[%emt 0:07:25]} exd5 {[%emt 0:02:53]} 9. Bd3 {[%emt 0:01:05]} Bxd3 {[%emt 0:01:16]} 10. Qxd3 {[%emt 0:01:08]} Be7 {[%emt 0:06:15]} 11. O-O {[%emt 0:02:48]} O-O {[%emt 0:00:09]} 12. Bg3 {[%emt 0:01:09]} Nh5 {[%emt 0:05:18]} 13. Be5 {[%emt 0:04:53]} Nhf6 {[%emt 0:08:37]} 14. Bf4 {[%emt 0:04:39]} Re8 {[%emt 0:05:54]} 15. Ne5 {[%emt 0:04:14]} Nxe5 {[%emt 0:09:18]} 16. Bxe5 {[%emt 0:01:16]} Bd6 {[%emt 0:02:20]} 17. Bxd6 {[%emt 0:06:21]} Qxd6 {[%emt 0:00:10]} 18. Qf5 {[%emt 0:00:17]} Qe6 {[%emt 0:03:46]} 19. Qf3 {[%emt 0:02:12]} Ne4 {[%emt 0:00:51]} 20. Nxe4 {[%emt 0:01:10]} Qxe4 {[%emt 0:00:09]} 21. Qxe4 {[%emt 0:00:18]} Rxe4 {[%emt 0:00:05]} 22. Rac1 {[%emt 0:00:09]} Kf8 {[%emt 0:03:43]} 23. Rc3 {[%emt 0:00:24]} Ke7 {[%emt 0:02:40]} 24. Rb3 {[%emt 0:01:57]} Rb8 {[%emt 0:01:07]} 25. Rc1 {[%emt 0:00:38]} Kd6 {[%emt 0:00:59]} 26. Ra3 {[%emt 0:01:29]} a6 {[%emt 0:01:40]} 27. Rcc3 {[%emt 0:01:39]} Ra8 {[%emt 0:03:09]} 28. Rab3 {[%emt 0:02:02]} Kc7 {[%emt 0:03:39]} 29. Rc2 {[%emt 0:01:01]} Rae8 {[%emt 0:00:47]} 30. Kf1 {[%emt 0:03:44]} f5 {[%emt 0:01:09]} 31. Rc1 {[%emt 0:08:10]} f4 {[%emt 0:02:58]} 32. Re1 {[%emt 0:00:34]} fxe3 {[%emt 0:01:50]} 33. Rbxe3 {[%emt 0:00:48]} Kd6 {[%emt 0:00:26]} 34. Ke2 {[%emt 0:02:02]} b6 {[%emt 0:02:06]} 35. Kd3 {[%emt 0:00:46]} Rxe3+ {[%emt 0:01:57]} 36. fxe3 {[%emt 0:00:23]} c5 {[%emt 0:00:27]} 37. Rf1 {[%emt 0:01:15]} Re7 {[%emt 0:00:10]} 38. Rf8 {[%emt 0:01:36]} Ra7 {[%emt 0:01:01]} 39. Rb8 {[%emt 0:02:12]} c4+ {[%emt 0:00:27]} 40. Kd2 {[%emt 0:00:44]} b5 {[%emt 0:00:16]} 41. Rb6+ {[%emt 0:31:07]} Kc7 {[%emt 0:01:48]} 42. Rg6 {[%emt 0:00:00]} Kb8 {[%emt 0:00:18]} 43. Rd6 {[%emt 0:00:00]} Rf7 {[%emt 0:00:40]} 44. Ke2 {[%emt 0:00:00]} Kb7 {[%emt 0:01:50]} 45. Rxd5 {[%emt 0:00:00]} Kc6 {[%emt 0:01:05]} 46. Re5 {[%emt 0:00:00]} Rf6 {[%emt 0:03:50]} 47. g3 {[%emt 0:00:00]} g6 {[%emt 0:00:58]} 48. e4 {[%emt 0:00:00]} h5 {[%emt 0:04:32]} 49. Rc5+ {[%emt 0:00:00]} Kb6 {[%emt 0:00:21]} 50. e5 {[%emt 0:00:00]} Rc6 {[%emt 0:05:24]} 51. Rxc6+ {[%emt 0:03:21]} Kxc6 {[%emt 0:00:05]} 52. e6 {[%emt 0:00:08]} a5 {[%emt 0:02:39]} 53. d5+ {[%emt 0:00:30]} Kd6 {[%emt 0:00:07]} 54. Kd2 {[%emt 0:00:36]} b4 {[%emt 0:00:33]} 55. Ke3 {[%emt 0:03:53]} a4 {[%emt 0:00:48]} 56. Kd2 {[%emt 0:07:57]} Ke7 {[%emt 0:02:40]} 57. a3 {[%emt 0:07:01]} c3+ {[%emt 0:00:54]} 58. bxc3 {[%emt 0:00:21]} bxa3 {[%emt 0:03:13]} 59. Kc2 {[%emt 0:00:17]} 1-0

[Event "94th FRA-ch Open C 2019"]
[Site "Chartres"]
[Date "2019.08.23"]
[Round "7.1"]
[White "Brun, Pierre"]
[Black "Sithisak, Remi"]
[Result "0-1"]
[ECO "A45"]
[WhiteElo "1648"]
[BlackElo "1635"]
[Annotator "NA"]
[PlyCount "56"]
[EventDate "2019.08.17"]
[EventType "swiss"]
[EventCountry "FRA"]
[SourceTitle "playchess.com"]
[Source "ChessBase"]
[SourceQuality "1"]
[TimeControl "40/5400+30:1800+30"]

1. d4 {[%emt 0:00:00]} Nf6 {[%emt 0:00:00]} 2. Bf4 {[%emt 0:00:00]} g6 {[%emt 0:00:32]} 3. Nc3 {[%emt 0:00:00]} d5 {[%emt 0:00:45]} 4. e3 {[%emt 0:00:08]} Bg7 {[%emt 0:00:29]} 5. Bd3 {[%emt 0:00:18]} O-O {[%emt 0:01:13]} 6. h4 {[%emt 0:00:32]} h5 {[%emt 0:03:23]} 7. Nh3 {[%emt 0:02:46]} c5 {[%emt 0:12:20]} 8. dxc5 {[%emt 0:08:41]} Nc6 {[%emt 0:02:59]} 9. Bg5 {[%emt 0:06:49]} Qa5 {[%emt 0:04:47]} 10. Kf1 {[%emt 0:06:51]} Qxc5 {[%emt 0:02:39]} 11. Ne2 {[%emt 0:03:13]} e5 {[%emt 0:04:01]} 12. c3 {[%emt 0:02:07]} Ng4 {[%emt 0:15:06]} 13. b4 {[%emt 0:05:40]} Qb6 {[%emt 0:10:48]} 14. e4 {[%emt 0:02:45]} dxe4 {[%emt 0:03:27]} 15. Bxe4 {[%emt 0:00:20]} f6 {[%emt 0:03:17]} 16. Bd5+ {[%emt 0:02:21]} Kh8 {[%emt 0:03:55]} 17. Bc1 {[%emt 0:00:10]} Rd8 {[%emt 0:01:47]} 18. f3 {[%emt 0:00:39]} Ne3+ {[%emt 0:02:17]} 19. Bxe3 {[%emt 0:02:01]} Qxe3 {[%emt 0:00:03]} 20. Qb3 {[%emt 0:00:24]} Ne7 {[%emt 0:01:47]} 21. Rd1 {[%emt 0:02:08]} Nxd5 {[%emt 0:01:09]} 22. Rxd5 {[%emt 0:00:17]} Be6 {[%emt 0:00:48]} 23. Rxd8+ {[%emt 0:00:05]} Rxd8 {[%emt 0:00:04]} 24. Qb1 {[%emt 0:03:39]} Bxa2 {[%emt 0:03:19]} 25. Qe1 {[%emt 0:00:41]} Bb3 {[%emt 0:01:54]} 26. Nf2 {[%emt 0:00:18]} Rd2 {[%emt 0:00:50]} 27. g4 {[%emt 0:03:15]} Bc4 {[%emt 0:01:04]} 28. Kg2 {[%emt 0:47:52]} Bxe2 {[%emt 0:01:18]} 0-1

[Event "94th FRA-ch Open C 2019"]
[Site "Chartres"]
[Date "2019.08.23"]
[Round "7.2"]
[White "Guliyev, Tofig"]
[Black "Leclerc, Alain"]
[Result "1/2-1/2"]
[ECO "A84"]
[WhiteElo "1615"]
[BlackElo "1787"]
[Annotator "NA"]
[PlyCount "90"]
[EventDate "2019.08.17"]
[EventType "swiss"]
[EventCountry "FRA"]
[SourceTitle "playchess.com"]
[Source "ChessBase"]
[SourceQuality "1"]
[TimeControl "40/5400+30:1800+30"]

1. d4 {[%emt 0:00:00]} d5 {[%emt 0:00:18]} 2. c4 {[%emt 0:00:00]} e6 {[%emt 0:00:34]} 3. Nc3 {[%emt 0:00:22]} f5 {[%emt 0:00:32]} 4. Nf3 {[%emt 0:00:30]} Nf6 {[%emt 0:00:14]} 5. Bf4 {[%emt 0:00:36]} c6 {[%emt 0:00:23]} 6. e3 {[%emt 0:01:19]} Bd6 {[%emt 0:10:50]} 7. Bxd6 {[%emt 0:01:23]} Qxd6 {[%emt 0:00:07]} 8. Bd3 {[%emt 0:00:20]} Nbd7 {[%emt 0:03:48]} 9. O-O {[%emt 0:02:36]} Ne4 {[%emt 0:00:31]} 10. Qb3 {[%emt 0:04:26]} Ndf6 {[%emt 0:08:13]} 11. Rfc1 {[%emt 0:13:23]} O-O {[%emt 0:01:14]} 12. Rc2 {[%emt 0:09:18]} Kh8 {[%emt 0:04:19]} 13. Ne5 {[%emt 0:12:30]} Nxc3 {[%emt 0:24:10]} 14. bxc3 {[%emt 0:05:45]} Rb8 {[%emt 0:00:46]} 15. Qa4 {[%emt 0:31:05]} Ra8 {[%emt 0:02:00]} 16. Rb1 {[%emt 0:04:24]} Nd7 {[%emt 0:00:29]} 17. Nxd7 {[%emt 0:05:23]} Qxd7 {[%emt 0:00:13]} 18. Rcb2 {[%emt 0:00:44]} Qe7 {[%emt 0:09:08]} 19. f4 {[%emt 0:00:51]} h6 {[%emt 0:02:30]} 20. Qb4 {[%emt 0:01:18]} Qxb4 {[%emt 0:00:14]} 21. Rxb4 {[%emt 0:01:37]} Rf7 {[%emt 0:02:21]} 22. cxd5 {[%emt 0:02:38]} exd5 {[%emt 0:00:48]} 23. c4 {[%emt 0:00:22]} dxc4 {[%emt 0:00:46]} 24. Bxc4 {[%emt 0:00:09]} Re7 {[%emt 0:00:22]} 25. Kf2 {[%emt 0:00:07]} b6 {[%emt 0:00:43]} 26. Rd1 {[%emt 0:01:01]} Be6 {[%emt 0:00:39]} 27. Bxe6 {[%emt 0:00:42]} Rxe6 {[%emt 0:00:07]} 28. Rc4 {[%emt 0:00:30]} Rd8 {[%emt 0:00:48]} 29. Rdc1 {[%emt 0:00:25]} Rdd6 {[%emt 0:00:59]} 30. h3 {[%emt 0:01:16]} g6 {[%emt 0:01:40]} 31. g4 {[%emt 0:00:00]} Kg7 {[%emt 0:00:18]} 32. Kf3 {[%emt 0:00:00]} Kf6 {[%emt 0:01:26]} 33. R1c3 {[%emt 0:00:37]} Ke7 {[%emt 0:00:44]} 34. Rc2 {[%emt 0:00:48]} Kd7 {[%emt 0:02:47]} 35. Rg2 {[%emt 0:00:29]} Rd5 {[%emt 0:01:55]} 36. gxf5 {[%emt 0:00:16]} gxf5 {[%emt 0:00:16]} 37. Rg7+ {[%emt 0:00:08]} Kd6 {[%emt 0:00:27]} 38. Rxa7 {[%emt 0:00:07]} Rb5 {[%emt 0:00:14]} 39. Rc2 {[%emt 0:00:39]} Rb1 {[%emt 0:00:18]} 40. Ra3 {[%emt 0:01:14]} Rh1 {[%emt 0:00:18]} 41. Kg2 {[%emt 0:30:27]} Re1 {[%emt 0:30:11]} 42. Kf2 {[%emt 0:00:00]} Rh1 {[%emt 0:00:00]} 43. Kg2 {[%emt 0:00:00]} Re1 {[%emt 0:00:00]} 44. Kf2 {[%emt 0:00:00]} Kd5 {[%emt 0:23:20]} 45. Rac3 Kd6 {[%emt 0:00:30]} 1/2-1/2

[Event "94th FRA-ch Open C 2019"]
[Site "Chartres"]
[Date "2019.08.23"]
[Round "7.3"]
[White "Cresswell, Patrick"]
[Black "Rocher, Guillaume"]
[Result "1-0"]
[ECO "D02"]
[WhiteElo "1664"]
[BlackElo "1620"]
[Annotator "NA"]
[PlyCount "109"]
[EventDate "2019.08.17"]
[EventType "swiss"]
[EventCountry "FRA"]
[SourceTitle "playchess.com"]
[Source "ChessBase"]
[SourceQuality "1"]
[TimeControl "40/5400+30:1800+30"]

1. d4 {[%emt 0:00:00]} Nf6 {[%emt 0:00:00]} 2. Bf4 {[%emt 0:00:00]} d5 {[%emt 0:00:00]} 3. Nf3 {[%emt 0:00:00]} c5 {[%emt 0:00:00]} 4. e3 {[%emt 0:00:00]} Nc6 {[%emt 0:00:16]} 5. c3 {[%emt 0:00:00]} Bg4 {[%emt 0:00:17]} 6. Nbd2 {[%emt 0:01:00]} e6 {[%emt 0:00:28]} 7. h3 {[%emt 0:02:10]} Bxf3 {[%emt 0:00:30]} 8. Nxf3 {[%emt 0:00:30]} c4 {[%emt 0:08:28]} 9. Be2 {[%emt 0:00:57]} h6 {[%emt 0:04:45]} 10. Ne5 {[%emt 0:03:51]} Nxe5 {[%emt 0:05:54]} 11. Bxe5 {[%emt 0:00:45]} Bd6 {[%emt 0:00:30]} 12. Qa4+ {[%emt 0:00:30]} Qd7 {[%emt 0:00:30]} 13. Qxd7+ {[%emt 0:00:30]} Kxd7 {[%emt 0:00:30]} 14. Bxf6 {[%emt 0:00:30]} gxf6 {[%emt 0:09:32]} 15. e4 {[%emt 1:26:47]} Rab8 {[%emt 0:04:11]} 16. exd5 {[%emt 0:00:00]} exd5 {[%emt 0:00:07]} 17. Bg4+ {[%emt 0:00:00]} Kc6 {[%emt 0:01:00]} 18. O-O {[%emt 0:00:00]} h5 {[%emt 0:06:08]} 19. Bf3 {[%emt 0:00:00]} b5 {[%emt 0:01:06]} 20. b4 {[%emt 0:00:00]} Ra8 {[%emt 0:16:52]} 21. a4 {[%emt 0:00:00]} a6 {[%emt 0:00:13]} 22. Ra2 {[%emt 0:00:00]} Bf4 {[%emt 0:10:32]} 23. Rfa1 {[%emt 0:04:00]} bxa4 {[%emt 0:29:41]} 24. Rxa4 {[%emt 0:00:00]} Bd2 {[%emt 0:00:00]} 25. Rxa6+ {[%emt 0:00:00]} Rxa6 {[%emt 0:00:00]} 26. Rxa6+ {[%emt 0:00:00]} Kd7 {[%emt 0:00:00]} 27. Bxd5 {[%emt 0:00:00]} Bxc3 {[%emt 0:00:00]} 28. Rxf6 {[%emt 0:00:00]} Bxb4 {[%emt 0:00:00]} 29. Rxf7+ {[%emt 0:00:00]} Be7 {[%emt 0:00:00]} 30. Bxc4 {[%emt 0:00:00]} Rc8 {[%emt 0:00:00]} 31. Bb5+ {[%emt 0:00:00]} Ke6 {[%emt 0:00:00]} 32. Rf3 {[%emt 0:00:00]} Rc1+ {[%emt 0:00:00]} 33. Bf1 {[%emt 0:00:00]} Bd6 {[%emt 0:00:00]} 34. g3 {[%emt 0:00:00]} Rd1 {[%emt 0:00:00]} 35. d5+ {[%emt 0:00:00]} Kxd5 {[%emt 0:00:00]} 36. Rf5+ {[%emt 0:00:00]} Ke6 {[%emt 0:00:00]} 37. Rxh5 {[%emt 0:00:00]} Kf7 {[%emt 0:00:00]} 38. Kg2 {[%emt 0:00:00]} Kg6 {[%emt 0:00:53]} 39. Ra5 {[%emt 0:00:00]} Kg7 {[%emt 0:02:09]} 40. Rg5+ {[%emt 0:00:00]} Kf6 {[%emt 0:02:13]} 41. Rg4 {[%emt 0:00:00]} Rd2 {[%emt 0:31:34]} 42. h4 {[%emt 0:00:00]} Bc5 43. Rf4+ {[%emt 0:40:00]} Kg6 {[%emt 0:00:00]} 44. Bb5 {[%emt 0:00:00]} Rb2 {[%emt 0:00:00]} 45. Be8+ {[%emt 0:00:00]} Kg7 {[%emt 0:00:00]} 46. h5 {[%emt 0:00:00]} Re2 {[%emt 0:00:00]} 47. Bc6 {[%emt 0:00:00]} Rc2 {[%emt 0:00:00]} 48. Be4 {[%emt 0:00:00]} Rb2 {[%emt 0:00:00]} 49. g4 {[%emt 0:00:00]} Rb4 {[%emt 0:00:00]} 50. g5 {[%emt 0:00:00]} Bd6 {[%emt 0:00:00]} 51. Rg4 {[%emt 0:00:00]} Rb8 {[%emt 0:00:00]} 52. h6+ {[%emt 0:00:00]} Kh8 {[%emt 0:00:00]} 53. g6 {[%emt 0:00:00]} Bg3 {[%emt 0:00:00]} 54. g7+ {[%emt 0:00:00]} Kg8 {[%emt 0:00:00]} 55. h7+ {[%emt 0:00:00]} 1-0

[Event "94th FRA-ch Open C 2019"]
[Site "Chartres"]
[Date "2019.08.23"]
[Round "7.4"]
[White "Deswarte, Come"]
[Black "Chaillou, Vincent"]
[Result "0-1"]
[ECO "B54"]
[WhiteElo "1628"]
[BlackElo "1654"]
[Annotator "NA"]
[PlyCount "40"]
[EventDate "2019.08.17"]
[EventType "swiss"]
[EventCountry "FRA"]
[SourceTitle "playchess.com"]
[Source "ChessBase"]
[SourceQuality "1"]
[TimeControl "40/5400+30:1800+30"]

1. e4 {[%emt 0:00:00]} c5 {[%emt 0:00:00]} 2. Nf3 {[%emt 0:00:23]} d6 {[%emt 0:00:00]} 3. d4 {[%emt 0:00:27]} cxd4 {[%emt 0:00:05]} 4. Nxd4 {[%emt 0:00:02]} e5 {[%emt 0:00:12]} 5. Nb3 {[%emt 0:02:46]} Nf6 {[%emt 0:00:22]} 6. Bg5 {[%emt 0:01:41]} Be7 {[%emt 0:00:06]} 7. Bb5+ {[%emt 0:02:59]} Nc6 {[%emt 0:00:38]} 8. Bxf6 {[%emt 0:00:26]} Bxf6 {[%emt 0:00:41]} 9. O-O {[%emt 0:00:24]} Be6 {[%emt 0:01:38]} 10. Na3 {[%emt 0:07:33]} O-O {[%emt 0:02:37]} 11. Bc4 {[%emt 0:03:05]} Bxc4 {[%emt 0:01:15]} 12. Nxc4 {[%emt 0:00:02]} Be7 {[%emt 0:00:20]} 13. Qd2 {[%emt 0:00:27]} Rc8 {[%emt 0:07:49]} 14. Rad1 {[%emt 0:07:33]} Nd4 {[%emt 0:02:52]} 15. Nxd4 {[%emt 0:10:06]} Rxc4 {[%emt 0:00:20]} 16. Nf5 {[%emt 0:00:05]} Rxe4 {[%emt 0:00:59]} 17. Nxd6 {[%emt 0:00:03]} Rd4 {[%emt 0:03:21]} 18. Nxb7 {[%emt 0:02:56]} Rxd2 {[%emt 0:00:36]} 19. Nxd8 {[%emt 0:00:03]} Rfxd8 {[%emt 0:00:20]} 20. Rc1 {[%emt 0:00:50]} Rc8 {[%emt 0:00:19]} 0-1

[Event "94th FRA-ch Open C 2019"]
[Site "Chartres"]
[Date "2019.08.23"]
[Round "7.5"]
[White "Castanet, Clement"]
[Black "Cregut, Marian"]
[Result "0-1"]
[ECO "B57"]
[WhiteElo "1650"]
[BlackElo "1717"]
[Annotator "NA"]
[PlyCount "78"]
[EventDate "2019.08.17"]
[EventType "swiss"]
[EventCountry "FRA"]
[SourceTitle "playchess.com"]
[Source "ChessBase"]
[SourceQuality "1"]
[TimeControl "40/5400+30:1800+30"]

1. e4 {[%emt 0:00:00]} c5 {[%emt 0:00:00]} 2. Nf3 {[%emt 0:00:00]} Nc6 {[%emt 0:00:05]} 3. d4 {[%emt 0:01:43]} cxd4 {[%emt 0:00:13]} 4. Nxd4 {[%emt 0:00:06]} Nf6 {[%emt 0:00:30]} 5. Nc3 {[%emt 0:01:23]} d6 {[%emt 0:00:37]} 6. Bc4 {[%emt 0:03:04]} Qb6 {[%emt 0:00:43]} 7. Nxc6 {[%emt 0:07:05]} bxc6 {[%emt 0:00:44]} 8. O-O {[%emt 0:01:58]} g6 {[%emt 0:05:13]} 9. Bb3 {[%emt 0:13:11]} Bg7 {[%emt 0:11:22]} 10. Re1 {[%emt 0:03:32]} O-O {[%emt 0:09:37]} 11. Be3 {[%emt 0:02:49]} Qc7 {[%emt 0:05:08]} 12. Qd2 {[%emt 0:05:44]} Rd8 {[%emt 0:05:52]} 13. Bd4 {[%emt 0:08:12]} e5 {[%emt 0:11:28]} 14. Be3 {[%emt 0:00:19]} a5 {[%emt 0:05:12]} 15. f3 {[%emt 0:01:19]} Kh8 {[%emt 0:04:53]} 16. Rad1 {[%emt 0:06:12]} Nh5 {[%emt 0:06:05]} 17. Na4 {[%emt 0:02:28]} Rb8 {[%emt 0:05:15]} 18. Qf2 {[%emt 0:19:12]} c5 {[%emt 0:07:32]} 19. c4 {[%emt 0:02:49]} Nf4 {[%emt 0:04:29]} 20. Nc3 {[%emt 0:01:12]} Ne6 {[%emt 0:00:45]} 21. Nd5 {[%emt 0:02:51]} Qd7 {[%emt 0:02:19]} 22. Qc2 {[%emt 0:01:32]} Qb7 {[%emt 0:01:30]} 23. Rd2 {[%emt 0:00:58]} Nd4 {[%emt 0:01:03]} 24. Bxd4 {[%emt 0:00:07]} cxd4 {[%emt 0:00:10]} 25. Ba4 {[%emt 0:00:46]} Be6 {[%emt 0:00:47]} 26. b3 {[%emt 0:02:44]} Rdc8 {[%emt 0:01:10]} 27. Qd1 {[%emt 0:02:03]} f5 {[%emt 0:01:25]} 28. Ree2 {[%emt 0:02:34]} Rf8 {[%emt 0:01:17]} 29. Rc2 {[%emt 0:01:00]} fxe4 {[%emt 0:00:51]} 30. fxe4 {[%emt 0:00:47]} Bg4 {[%emt 0:00:34]} 31. Qd2 {[%emt 0:00:29]} Bxe2 {[%emt 0:00:19]} 32. Qxe2 {[%emt 0:00:16]} Rf7 {[%emt 0:01:00]} 33. Rc1 {[%emt 0:04:17]} Rbf8 {[%emt 0:00:55]} 34. a3 {[%emt 0:02:08]} Bh6 {[%emt 0:00:34]} 35. Rb1 {[%emt 0:00:37]} Be3+ {[%emt 0:00:37]} 36. Kh1 {[%emt 0:01:20]} Rf2 {[%emt 0:00:57]} 37. Qd1 {[%emt 0:00:30]} Qf7 {[%emt 0:00:38]} 38. Nxe3 {[%emt 0:00:37]} dxe3 {[%emt 0:00:19]} 39. Kg1 {[%emt 0:00:06]} e2 {[%emt 0:00:34]} 0-1